fUSD/lending_fUSD_20260414
["ID","MTS","AMOUNT","RATE_DAILY","PERIOD"]
[420492692,1776154253762,-5272.0,0.00013656,2]
[420492693,1776154253774,-541.94358684,0.00013698,2]
[420492694,1776154253786,-500.0,0.00013698,2]
[420492695,1776154253802,-500.0,0.00013698,2]
[420492696,1776154253812,-500.0,0.00013698,2]
[420492697,1776154253825,-500.0,0.00013698,2]
[420492698,1776154253838,-500.0,0.00013698,2]
[420492699,1776154253850,-524.11,0.00013698,2]
[420492700,1776154253863,-524.11,0.00013698,2]
[420492701,1776154253876,-524.11,0.00013698,2]
[420492702,1776154253892,-524.11,0.00013698,2]
[420492703,1776154253903,-524.11,0.00013698,2]
[420492704,1776154253916,-500.0,0.00013698,2]
[420492705,1776154253934,-500.0,0.00013698,2]
[420492706,1776154253947,-500.0,0.00013698,2]
[420492707,1776154253959,-500.0,0.00013698,2]
[420492708,1776154253973,-500.0,0.00013698,2]
[420492709,1776154253984,-500.0,0.00013698,2]
[420492710,1776154254001,-500.0,0.00013698,2]
[420492711,1776154254012,-506.94986921,0.00013698,2]
[420492712,1776154254025,-500.0,0.00013698,2]
[420492713,1776154254042,-500.0,0.00013698,2]
[420492714,1776154254052,-500.0,0.00013698,2]
[420492715,1776154254067,-500.0,0.00013698,2]
[420492716,1776154254083,-500.0,0.00013698,2]
[420492717,1776154254095,-500.0,0.00013698,2]
[420492718,1776154254111,-500.0,0.00013698,2]
[420492719,1776154254132,-500.0,0.00013698,2]
[420492720,1776154254142,-500.0,0.00013698,2]
[420492721,1776154254165,-500.0,0.00013698,2]
[420492722,1776154254179,-500.0,0.00013698,2]
[420492723,1776154254190,-500.0,0.00013698,2]
[420492724,1776154254221,-500.0,0.00013698,2]
[420492725,1776154254233,-500.80314661,0.00013698,2]
[420492726,1776154254245,-583.72,0.00013698,2]
[420492727,1776154254272,-583.72,0.00013698,2]
[420492728,1776154254286,-583.72,0.00013698,2]
[420492729,1776154254323,-583.72,0.00013698,2]
[420492730,1776154254336,-583.72,0.00013698,2]
[420492731,1776154254354,-583.72,0.00013698,2]
[420492732,1776154254375,-500.0,0.00013698,2]
[420492733,1776154254391,-500.0,0.00013698,2]
[420492734,1776154254412,-500.0,0.00013698,2]
[420492735,1776154254427,-500.0,0.00013698,2]
[420492736,1776154254440,-500.0,0.00013698,2]
[420492737,1776154254458,-500.0,0.00013698,2]
[420492738,1776154254472,-500.0,0.00013698,2]
[420492739,1776154254489,-500.0,0.00013698,2]
[420492740,1776154254499,-500.0,0.00013698,2]
[420492741,1776154254509,-500.0,0.00013698,2]
[420492742,1776154254523,-500.0,0.00013698,2]
[420492743,1776154254538,-500.0,0.00013698,2]
[420492744,1776154254548,-500.0,0.00013698,2]
[420492745,1776154254564,-500.0,0.00013698,2]
[420492746,1776154254578,-500.0,0.00013698,2]
[420492747,1776154254588,-500.0,0.00013698,2]
[420492748,1776154254602,-500.0,0.00013698,2]
[420492749,1776154254619,-500.0,0.00013698,2]
[420492750,1776154254630,-500.0,0.00013698,2]
[420492751,1776154254644,-500.0,0.00013698,2]
[420492752,1776154254659,-500.0,0.00013698,2]
[420492753,1776154254670,-500.0,0.00013698,2]
[420492754,1776154254684,-500.0,0.00013698,2]
[420492755,1776154254696,-569.95151342,0.00013698,2]
[420492756,1776154254711,-500.0,0.00013698,2]
[420492757,1776154254728,-500.0,0.00013698,2]
[420492758,1776154254742,-500.0,0.00013698,2]
[420492759,1776154254752,-500.0,0.00013698,2]
[420492760,1776154254767,-500.0,0.00013698,2]
[420492761,1776154254779,-500.0,0.00013698,2]
[420492762,1776154254790,-1201.19,0.00013698,2]
[420492763,1776154254805,-1201.19,0.00013698,2]
[420492764,1776154254822,-1201.19,0.00013698,2]
[420492765,1776154254838,-1201.19,0.00013698,2]
[420492766,1776154254854,-500.0,0.00013698,2]
[420492767,1776154255289,-1201.19,0.00013698,2]
[420492768,1776154255305,-500.0,0.00013698,2]
[420492769,1776154255316,-1201.19,0.00013698,2]
[420492770,1776154255325,-500.0,0.00013698,2]
[420492771,1776154255340,-500.0,0.00013698,2]
[420492772,1776154255351,-500.0,0.00013698,2]
[420492773,1776154255361,-500.0,0.00013698,2]
[420492774,1776154255371,-502.66897991,0.00013698,2]
[420492775,1776154255381,-500.0,0.00013698,2]
[420492776,1776154255391,-500.0,0.00013698,2]
[420492777,1776154255403,-500.0,0.00013698,2]
[420492778,1776154255413,-240.48200629,0.00013698,2]
[420492779,1776154255424,-500.0,0.00013698,2]
[420492780,1776154255434,-500.0,0.00013698,2]
[420492781,1776154255449,-500.0,0.00013698,2]
[420492782,1776154255459,-500.0,0.00013698,2]
[420492783,1776154255469,-500.0,0.00013698,2]
[420492784,1776154255480,-500.0,0.00013698,2]
[420492785,1776154255495,-500.0,0.00013698,2]
[420492786,1776154255505,-500.0,0.00013698,2]
[420492787,1776154255515,-500.0,0.00013698,2]
[420492788,1776154255525,-500.0,0.00013698,2]
[420492789,1776154255541,-500.0,0.00013698,2]
[420492790,1776154255553,-500.0,0.00013698,2]
[420492791,1776154255563,-500.0,0.00013698,2]
[420492792,1776154255578,-500.0,0.00013698,2]
[420492793,1776154255589,-335.68092278,0.00013698,2]
[420492794,1776154255601,-500.0,0.00013698,2]
[420492795,1776154255610,-500.0,0.00013698,2]
[420492796,1776154255629,-500.0,0.00013698,2]
[420492797,1776154255642,-500.0,0.00013698,2]
[420492798,1776154255653,-500.0,0.00013698,2]
[420492799,1776154255676,-500.0,0.00013698,2]
[420492800,1776154255686,-500.0,0.00013698,2]
[420492801,1776154255699,-500.0,0.00013698,2]
[420492802,1776154255715,-500.0,0.00013698,2]
[420492803,1776154255729,-500.0,0.00013698,2]
[420492804,1776154255744,-586.17,0.00013698,2]
[420492805,1776154255763,-586.17,0.00013698,2]
[420492806,1776154255773,-586.17,0.00013698,2]
[420492807,1776154255790,-586.17,0.00013698,2]
[420492808,1776154255801,-586.17,0.00013698,2]
[420492809,1776154255814,-586.17,0.00013698,2]
[420492810,1776154255832,-500.0,0.00013698,2]
[420492811,1776154255845,-508.78537537,0.00013698,2]
[420492812,1776154255858,-500.0,0.00013698,2]
[420492813,1776154255879,-500.0,0.00013698,2]
[420492814,1776154255889,-500.0,0.00013698,2]
[420492815,1776154255902,-214.87656399,0.00013698,2]
[420492816,1776154255924,-669.65,0.00013698,2]
[420492817,1776154255938,-669.65,0.00013698,2]
[420492818,1776154255949,-669.65,0.00013698,2]
[420492819,1776154255974,-669.65,0.00013698,2]
[420492820,1776154255985,-669.65,0.00013698,2]
[420492821,1776154256001,-669.65,0.00013698,2]
[420492822,1776154256023,-778.42,0.00013698,2]
[420492823,1776154256032,-778.42,0.00013698,2]
[420492824,1776154256047,-778.42,0.00013698,2]
[420492825,1776154256058,-778.42,0.00013698,2]
[420492826,1776154256072,-3900.0,0.00013699,2]
[420492827,1776154256082,-3900.0,0.00013699,2]
[420492828,1776154256103,-1187.0,0.00013699,2]
[420492829,1776154256114,-2978.33,0.00013699,2]
[420492830,1776154256124,-717.81,0.00013699,2]
[420492831,1776154256145,-166.66,0.00013699,2]
[420492832,1776154256157,-504.8,0.00013699,2]
[420492833,1776154256168,-500.0,0.00013699,2]
[420492834,1776154256184,-500.6495102,0.00013699,2]
[420492835,1776154256210,-500.16663065,0.00013699,2]
[420492836,1776154256230,-500.41934487,0.00013699,2]
[420492837,1776154256251,-500.38683501,0.00013699,2]
[420492838,1776154256264,-500.0,0.00013699,2]
[420492839,1776154256294,-161.05,0.00013699,2]
[420492840,1776154256305,-150.0,0.00013699,2]
[420492841,1776154256336,-150.0,0.00013699,2]
[420492842,1776154256346,-150.0,0.00013699,2]
[420492843,1776154256358,-150.0,0.00013699,2]
[420492844,1776154256379,-150.0,0.00013699,2]
[420492845,1776154256388,-228.7563451,0.00013699,2]
[420492846,1776154256399,-986.73,0.00013699,2]
[420492847,1776154256411,-786.6,0.00013699,2]
[420492848,1776154256427,-500.0,0.00013699,2]
[420492849,1776154256438,-282.17301977,0.00013699,2]
[420492850,1776154256450,-500.0,0.00013699,2]
[420492851,1776154256467,-500.0,0.00013699,2]
[420492852,1776154256477,-500.0,0.00013699,2]
[420492853,1776154256490,-500.0,0.00013699,2]
[420492854,1776154256502,-500.0,0.00013699,2]
[420492855,1776154256514,-500.0,0.00013699,2]
[420492856,1776154256527,-500.0,0.00013699,2]
[420492857,1776154256542,-500.0,0.00013699,2]
[420492858,1776154256556,-500.0,0.00013699,2]
[420492859,1776154256566,-500.0,0.00013699,2]
[420492860,1776154256586,-500.0,0.00013699,2]
[420492861,1776154256603,-500.0,0.00013699,2]
[420492862,1776154256620,-500.0,0.00013699,2]
[420492863,1776154256630,-500.0,0.00013699,2]
[420492864,1776154256644,-500.0,0.00013699,2]
[420492865,1776154256655,-500.0,0.00013699,2]
[420492866,1776154256668,-500.0,0.00013699,2]
[420492867,1776154256684,-162.0,0.000137,2]
[420492868,1776154256695,-488.0,0.000137,2]
[420492869,1776154256711,-1575.0,0.000137,2]
[420492870,1776154256722,-1575.0,0.000137,2]
[420492871,1776154256738,-219.10270936,0.000137,2]
[420492872,1776154256752,-1575.0,0.000137,2]
[420492873,1776154256764,-168.5,0.00013707,2]
[420492874,1776154256780,-395.45000643,0.000138,2]
[420492875,1776154256790,-15088.78556412,0.000138,2]
[420492876,1776154256804,-166.66,0.00013836,2]
[420492877,1776154256814,-200.0,0.00013842,2]
[420492878,1776154256838,-1651.81367706,0.00013842,2]
[420492879,1776154256850,-859.80605061,0.00013842,2]
[420492880,1776154256861,-201.93286099,0.00013842,2]
[420492881,1776154256875,-5272.0,0.00013876,2]
[420492882,1776154256890,-2300.0,0.000139,5]
[420492883,1776154256899,-4470.8309683,0.00013908,2]
[420492884,1776154257919,-801.1690317,0.00013908,2]
[420492885,1776154257979,-536.54790034,0.00013951,2]
[420492889,1776154888958,4462.052,8.701e-05,2]
[420492890,1776154889415,339.718,8.701e-05,2]
[420492944,1776155219193,1913.0,8.857e-05,2]
[420492951,1776155326853,334.9,0.000165,30]
[420492978,1776155433019,-452.6361,8.874e-05,2]
[420492979,1776155433041,-747.3639,8.874e-05,2]
[420492980,1776155433055,-300.0,8.874e-05,2]
[420492981,1776155433066,-1471.42116904,8.875e-05,2]
[420492982,1776155433263,-1535.50184748,8.875e-05,2]
[420492983,1776155433282,-277.0,8.875e-05,2]
[420492984,1776155433292,-250.0,8.876e-05,2]
[420492985,1776155433313,-345.7815,8.876e-05,2]
[420492986,1776155433323,-211.65034056,8.876e-05,2]
[420492987,1776155433334,-163.17,8.877e-05,2]
[420492988,1776155433353,-211.65034056,8.9e-05,2]
[420492989,1776155433364,-150.0,8.9e-05,2]
[420492990,1776155433373,-600.0,9e-05,3]
[420492991,1776155433387,-163.17,9.151e-05,2]
[420492992,1776155433401,-172.8907,9.32e-05,2]
[420492993,1776155433411,-359.4843714,9.36e-05,2]
[420492994,1776155433487,-140.5156286,9.36e-05,2]
[420492995,1776155433498,-381.47155511,9.36e-05,2]
[420492996,1776155433510,-163.18,9.425e-05,2]
[420492997,1776155433523,-150.0,9.7e-05,2]
[420492998,1776155433534,-1680.0,9.761e-05,2]
[420492999,1776155433543,-250.0,9.763e-05,2]
[420493000,1776155433920,-250.0,9.763e-05,2]
[420493001,1776155433961,-1551.25,9.764e-05,2]
[420493002,1776155433971,-3002.35,9.764e-05,2]
[420493003,1776155433987,-150.99,9.764e-05,2]
[420493004,1776155434003,-2902.62,9.764e-05,2]
[420493005,1776155434017,-182.63122235,0.0001,2]
[420493006,1776155434030,-487.20520489,0.0001,2]
[420493007,1776155434058,-1163.98610768,0.0001,2]
[420493008,1776155434069,-1104.34064121,0.0001,2]
[420493009,1776155434091,-996.56975858,0.0001,2]
[420493010,1776155434105,-349.38846592,0.0001,2]
[420493011,1776155434118,-335.78052956,0.0001,2]
[420493012,1776155434155,-151.0,0.0001,2]
[420493013,1776155434169,-500.0,0.0001,2]
[420493014,1776155434189,-151.0,0.0001,2]
[420493015,1776155434211,-500.0,0.0001,2]
[420493016,1776155434225,-151.0,0.0001,2]
[420493017,1776155434247,-500.0,0.0001,2]
[420493018,1776155434259,-151.0,0.0001,2]
[420493019,1776155434274,-500.0,0.0001,2]
[420493020,1776155434298,-151.0,0.0001,2]
[420493021,1776155434311,-500.0,0.0001,2]
[420493022,1776155434322,-151.0,0.0001,2]
[420493023,1776155434352,-500.0,0.0001,2]
[420493024,1776155434365,-151.0,0.0001,2]
[420493025,1776155434397,-500.0,0.0001,2]
[420493026,1776155434419,-151.0,0.0001,2]
[420493027,1776155434482,-500.0,0.0001,2]
[420493028,1776155434499,-151.0,0.0001,2]
[420493029,1776155434509,-500.0,0.0001,2]
[420493030,1776155434530,-151.0,0.0001,2]
[420493031,1776155434557,-500.0,0.0001,2]
[420493032,1776155434566,-151.0,0.0001,2]
[420493033,1776155434576,-151.0,0.0001,2]
[420493034,1776155434586,-500.0,0.0001,2]
[420493035,1776155434606,-151.0,0.0001,2]
[420493036,1776155434616,-500.0,0.0001,2]
[420493037,1776155434626,-151.0,0.0001,2]
[420493038,1776155434644,-500.0,0.0001,2]
[420493039,1776155434653,-151.0,0.0001,2]
[420493040,1776155434663,-500.0,0.0001,2]
[420493041,1776155434678,-151.0,0.0001,2]
[420493042,1776155434689,-500.0,0.0001,2]
[420493043,1776155434698,-500.0,0.0001,2]
[420493044,1776155434708,-151.0,0.0001,2]
[420493045,1776155434722,-500.0,0.0001,2]
[420493046,1776155434735,-151.0,0.0001,2]
[420493047,1776155434744,-500.0,0.0001,2]
[420493048,1776155434753,-151.0,0.0001,2]
[420493049,1776155434766,-500.0,0.0001,2]
[420493050,1776155434782,-151.0,0.0001,2]
[420493051,1776155434792,-500.0,0.0001,2]
[420493052,1776155434802,-151.0,0.0001,2]
[420493053,1776155434814,-500.0,0.0001,2]
[420493054,1776155434828,-151.0,0.0001,2]
[420493055,1776155434848,-151.0,0.0001,2]
[420493056,1776155434861,-151.0,0.0001,2]
[420493057,1776155434871,-151.0,0.0001,2]
[420493058,1776155434887,-151.0,0.0001,2]
[420493059,1776155434901,-151.0,0.0001,2]
[420493060,1776155434910,-151.0,0.0001,2]
[420493061,1776155434920,-151.0,0.0001,2]
[420493062,1776155434940,-151.0,0.0001,2]
[420493063,1776155434950,-151.0,0.0001,2]
[420493064,1776155434961,-1386.78395259,0.0001,2]
[420493065,1776155434974,-1852.42,0.00010109,2]
[420493066,1776155434992,-189.1,0.00010225,2]
[420493067,1776155435002,-500.0,0.00010402,2]
[420493068,1776155435011,-9999.99,0.00010475,2]
[420493069,1776155435027,-926.0,0.00010677,2]
[420493070,1776155435039,-1218.0,0.00010677,2]
[420493071,1776155435049,-622.0,0.00010677,2]
[420493072,1776155435061,-1047.0,0.00010677,2]
[420493073,1776155435080,-2351.0,0.00010738,2]
[420493074,1776155435090,-150.0,0.00010959,2]
[420493075,1776155435101,-158.18000258,0.00010999,2]
[420493076,1776155435120,-190.1637,0.00011,2]
[420493077,1776155435131,-3017.75711286,0.00011099,2]
[420493078,1776155435143,-3017.75711282,0.00011099,2]
[420493079,1776155435156,-3017.75711282,0.00011099,2]
[420493080,1776155435175,-3017.75711282,0.00011099,2]
[420493081,1776155435198,-9375.36105455,0.00011099,2]
[420493082,1776155435213,-8921.58547502,0.00011099,2]
[420493083,1776155435227,-18296.94652952,0.00011099,2]
[420493084,1776155435239,-6712.55136323,0.00011099,2]
[420493085,1776155435253,-716.51117773,0.00011099,2]
[420493086,1776155435264,-933.29910589,0.00011099,2]
[420493091,1776155438432,-500.0,0.00011099,2]
[420493095,1776155438569,-9434.58488267,0.00011099,2]
[420493096,1776155438585,-18296.94652952,0.00011099,2]
[420493097,1776155438602,-160.0,0.0001137,2]
[420493098,1776155438615,-4002.71,0.00011571,2]
[420493099,1776155438646,-5457.75858779,0.00011644,2]
[420493100,1776155438659,-11981.43808046,0.00011644,2]
[420493101,1776155438744,-788.45865194,0.00011644,2]
[420493172,1776155440489,-69.29120933,0.00011644,2]
[420493173,1776155440499,-741.96694956,0.00011644,2]
[420493174,1776155441118,-325.47403664,0.00011644,2]
[420493197,1776155445230,3285.24,8.778e-05,2]
[420493198,1776155445275,10000.01,8.778e-05,2]
[420493199,1776155445313,10000.01,8.778e-05,2]
[420493200,1776155445358,10000.01,8.778e-05,2]
[420493201,1776155445397,10000.01,8.778e-05,2]
[420493202,1776155445434,10000.01,8.778e-05,2]
[420493203,1776155445474,10000.01,8.778e-05,2]
[420493204,1776155445509,10000.01,8.778e-05,2]
[420493205,1776155445543,10000.01,8.778e-05,2]
[420493206,1776155445574,10000.01,8.778e-05,2]
[420493213,1776155446879,-6544.43578976,8.778e-05,2]
[420493214,1776155446895,-6523.2312963,8.778e-05,2]
[420493215,1776155447011,-1438.871553,8.778e-05,2]
[420493221,1776155512915,10000.01,8.777e-05,2]
[420493222,1776155512950,10000.01,8.777e-05,2]
[420493223,1776155513209,10000.01,8.777e-05,2]
[420493224,1776155513264,10000.01,8.777e-05,2]
[420493225,1776155513315,10000.01,8.777e-05,2]
[420493226,1776155513374,10000.01,8.777e-05,2]
[420493227,1776155513420,10000.01,8.777e-05,2]
[420493228,1776155513453,10000.01,8.777e-05,2]
[420493229,1776155513497,10000.01,8.777e-05,2]
[420493230,1776155513541,10000.01,8.777e-05,2]
[420493231,1776155534645,-300.0,8.776e-05,2]
[420493232,1776155542702,-9780.65193291,8.777e-05,2]
[420493233,1776155542831,-10000.01,8.777e-05,2]
[420493234,1776155542977,-298.75913842,8.677e-05,2]
[420493235,1776155543144,-9402.49172316,8.777e-05,2]
[420493236,1776155543453,-10000.01,8.777e-05,2]
[420493237,1776155543531,-10000.01,8.777e-05,2]
[420493238,1776155543560,-10000.01,8.777e-05,2]
[420493239,1776155543623,-10000.01,8.777e-05,2]
[420493240,1776155545686,-10000.01,8.777e-05,2]
[420493241,1776155545714,-10000.01,8.777e-05,2]
[420493242,1776155545877,-10000.01,8.777e-05,2]
[420493243,1776155554537,-10000.01,8.777e-05,2]
[420493244,1776155554795,-10000.01,8.777e-05,2]
[420493245,1776155554861,-10000.01,8.777e-05,2]
[420493246,1776155558281,-10000.01,8.777e-05,2]
[420493247,1776155559704,-10000.01,8.777e-05,2]
[420493248,1776155559950,-10000.01,8.777e-05,2]
[420493249,1776155563604,-10000.01,8.777e-05,2]
[420493250,1776155563732,-10000.01,8.777e-05,2]
[420493251,1776155563838,-10000.01,8.777e-05,2]
[420493252,1776155566873,-10000.01,8.777e-05,2]
[420493253,1776155575967,-10000.01,8.777e-05,2]
[420493254,1776155576086,-10000.01,8.777e-05,2]
[420493255,1776155576235,-10000.01,8.777e-05,2]
[420493256,1776155580479,-10000.01,8.777e-05,2]
[420493257,1776155647691,488.2776,8.678e-05,2]
[420493258,1776155673687,-275.0,8.733e-05,2]
[420493259,1776155678936,858.583723,8.689e-05,2]
[420493260,1776155693677,358.39811133,0.00016011,60]
[420493261,1776155760590,2500.0,8.677e-05,2]
[420493263,1776155930403,2500.0,8.677e-05,2]
[420493264,1776155955582,165.3,8.088e-05,2]
[420493369,1776156071444,2500.0,8.677e-05,2]
[420493373,1776156143949,-300.0,8.772e-05,2]
[420493374,1776156143981,-300.0,8.772e-05,2]
[420493375,1776156144023,-250.0,8.773e-05,2]
[420493376,1776156144056,-1200.0,8.773e-05,2]
[420493377,1776156144094,-300.0,8.773e-05,2]
[420493378,1776156144127,-300.0,8.773e-05,2]
[420493379,1776156144184,-1200.0,8.773e-05,2]
[420493380,1776156144249,-250.0,8.773e-05,2]
[420493381,1776156144300,-5000.0,8.774e-05,2]
[420493382,1776156144343,-435.6106,8.774e-05,2]
[420493383,1776156144391,-4067.89818033,8.774e-05,2]
[420493384,1776156144426,-3401.49121967,8.774e-05,2]
[420493385,1776156173615,-276.0,8.774e-05,2]
[420493386,1776156173667,-234.24003451,8.774e-05,2]
[420493387,1776156173734,-524.44756573,8.776e-05,2]
[420493388,1776156173817,-524.44756573,8.776e-05,2]
[420493389,1776156173920,-524.44756573,8.776e-05,2]
[420493390,1776156173987,-524.44756573,8.776e-05,2]
[420493391,1776156174052,-524.44756573,8.776e-05,2]
[420493392,1776156174095,-524.44756573,8.776e-05,2]
[420493393,1776156174140,-524.44756573,8.776e-05,2]
[420493394,1776156174181,-524.44756573,8.776e-05,2]
[420493395,1776156174221,-524.44756573,8.776e-05,2]
[420493396,1776156174267,-524.44756573,8.776e-05,2]
[420493397,1776156174309,-524.44756573,8.776e-05,2]
[420493398,1776156174346,-524.44756573,8.776e-05,2]
[420493399,1776156174384,-524.44756573,8.776e-05,2]
[420493400,1776156174419,-524.44756573,8.776e-05,2]
[420493401,1776156174453,-524.44756573,8.776e-05,2]
[420493402,1776156174490,-524.44756573,8.776e-05,2]
[420493403,1776156174524,-524.44756573,8.776e-05,2]
[420493404,1776156174561,-524.44756573,8.776e-05,2]
[420493405,1776156174596,-524.44756573,8.776e-05,2]
[420493406,1776156174629,-524.44756573,8.776e-05,2]
[420493407,1776156174665,-524.44756573,8.776e-05,2]
[420493408,1776156174701,-524.44756573,8.776e-05,2]
[420493409,1776156174739,-524.44756573,8.776e-05,2]
[420493410,1776156174771,-524.44756573,8.776e-05,2]
[420493411,1776156174810,-524.44756573,8.776e-05,2]
[420493412,1776156174842,-378.57082224,8.776e-05,2]
[420493413,1776156210738,-460.0,8.776e-05,2]
[420493414,1776156225074,10000.01,8.677e-05,2]
[420493415,1776156225106,10000.01,8.677e-05,2]
[420493416,1776156225132,7449.2942,8.677e-05,2]
[420493417,1776156232943,1283.0079,8.677e-05,2]
[420493418,1776156247696,1267.7079,8.677e-05,3]
[420493419,1776156247741,1123.2921,8.677e-05,3]
[420493420,1776156254996,164.0,8.677e-05,3]
[420493421,1776156289218,200.0,8.7e-05,2]
[420493422,1776156305382,2272.0,8.7e-05,3]
[420493423,1776156307220,171.0,8.7e-05,3]
[420493424,1776156311744,794.01,4.562e-05,2]
[420493425,1776156311931,794.01,4.802e-05,2]
[420493426,1776156312353,794.01,5.043e-05,2]
[420493427,1776156312583,794.01,5.283e-05,2]
[420493428,1776156312821,794.01,5.523e-05,2]
[420493429,1776156313065,794.01,5.763e-05,2]
[420493430,1776156313279,794.01,6.003e-05,2]
[420493431,1776156313510,794.01,6.243e-05,2]
[420493432,1776156313721,794.01,6.483e-05,2]
[420493433,1776156313977,794.01,6.723e-05,2]
[420493434,1776156314270,794.01,6.963e-05,2]
[420493435,1776156314358,165.0,8.7e-05,3]
[420493436,1776156314557,794.01,7.204e-05,2]
[420493437,1776156314802,306.89,7.444e-05,2]
[420493438,1776156314854,487.12,7.444e-05,2]
[420493439,1776156323580,794.01,7.684e-05,2]
[420493440,1776156323807,794.01,7.924e-05,2]
[420493441,1776156324006,794.01,8.164e-05,2]
[420493442,1776156324209,794.01,8.404e-05,2]
[420493443,1776156324405,794.01,8.644e-05,2]
[420493445,1776156360855,197.66,0.000165,30]
[420493446,1776156368056,2176.0,8.7e-05,3]
[420493447,1776156374388,165.0,8.7e-05,3]
[420493448,1776156389677,2500.0,8.677e-05,2]
[420493449,1776156426619,701.84,8.7e-05,3]
[420493450,1776156426654,1366.16,8.7e-05,3]
[420493451,1776156427232,8633.85,8.677e-05,2]
[420493452,1776156427276,10000.01,8.677e-05,2]
[420493453,1776156427328,10000.01,8.677e-05,2]
[420493454,1776156427364,10000.01,8.677e-05,2]
[420493455,1776156427393,10000.01,8.677e-05,2]
[420493456,1776156427432,10000.01,8.677e-05,2]
[420493457,1776156427463,10000.01,8.677e-05,2]
[420493485,1776156631357,-300.0,8.675e-05,2]
[420493486,1776156631366,-1200.0,8.675e-05,2]
[420493487,1776156631377,-150.0,8.676e-05,2]
[420493488,1776156631387,-300.0,8.676e-05,2]
[420493489,1776156631396,-164.8037051,8.676e-05,2]
[420493490,1776156631411,-1035.1962949,8.676e-05,2]
[420493491,1776156631421,-386.50265466,8.676e-05,2]
[420493492,1776156631433,-314.23768328,8.676e-05,2]
[420493493,1776156631444,-309.02306624,8.676e-05,2]
[420493494,1776156631455,-72.17623376,8.676e-05,2]
[420493495,1776156631468,-177.82376624,8.676e-05,2]
[420493496,1776156631477,-1009.76340416,8.677e-05,2]
[420493497,1776156631486,-5552.16635992,8.677e-05,2]
[420493498,1776156631498,-555.92102686,8.677e-05,2]
[420493499,1776156631510,-255.83894739,8.677e-05,2]
[420493500,1776156631596,-759.87220332,8.677e-05,2]
[420493501,1776156631608,-839.14235027,8.677e-05,2]
[420493502,1776156631620,-1106.64191315,8.677e-05,2]
[420493503,1776156631632,-1258.9,8.677e-05,2]
[420493504,1776156631644,-391.88,8.677e-05,2]
[420493505,1776156631655,-95760.61499909,8.677e-05,2]
[420493506,1776156631665,-3575.133,8.677e-05,2]
[420493507,1776156631675,-133541.09760619,8.677e-05,2]
[420493508,1776156631687,-48475.11549381,8.677e-05,2]
[420493509,1776156631697,-2500.0,8.677e-05,2]
[420493510,1776156631707,-176.8579,8.677e-05,2]
[420493511,1776156631716,-154.0,8.677e-05,3]
[420493512,1776156631726,-1060.22111676,8.677e-05,2]
[420493513,1776156631736,-1009.76340416,8.677e-05,2]
[420493514,1776156631745,-1964.0,8.677e-05,3]
[420493515,1776156631755,-170.0,8.677e-05,3]
[420493516,1776156631764,-165.0,8.677e-05,3]
[420493517,1776156631773,-256.22,8.776e-05,2]
[420493518,1776156631783,-3569.642,8.776e-05,2]
[420493519,1776156631792,-272.064,8.776e-05,2]
[420493520,1776156631802,-208.15546082,8.777e-05,2]
[420493521,1776156631812,-634.16721977,8.777e-05,2]
[420493522,1776156631821,-722.20614992,8.777e-05,2]
[420493523,1776156631830,-794.01,8.884e-05,2]
[420493524,1776156631840,-256.22,9.05e-05,2]
[420493525,1776156631850,-999.99,9.1e-05,2]